[Event "Early-Titled-Tuesday-Blitz-September-26-2023"]
[Site "Chess.com"]
[Date "2023.09.26"]
[Round "1"]
[White "jraosam"]
[Black "vladgoncharov"]
[Result "1-0"]
[WhiteElo "2044"]
[BlackElo "2521"]
[TimeControl "180+1"]
[EndTime "8:10:07 PDT"]
[Termination "jraosam won on time"]

1. Nf3 {[%clk 0:02:59.2]} 1... Nf6 {[%clk 0:02:59.2]} 2. c4 {[%clk 0:02:59.6]}
2... c5 {[%clk 0:02:58.8]} 3. b3 {[%clk 0:02:58.9]} 3... g6 {[%clk 0:02:57.1]}
4. Bb2 {[%clk 0:02:59.4]} 4... Bg7 {[%clk 0:02:56.5]} 5. e3 {[%clk 0:03:00.1]}
5... O-O {[%clk 0:02:54.3]} 6. Be2 {[%clk 0:02:58.7]} 6... d5 {[%clk 0:02:45.9]}
7. cxd5 {[%clk 0:02:56.1]} 7... Qxd5 {[%clk 0:02:45]} 8. O-O {[%clk 0:02:54.9]}
8... Nc6 {[%clk 0:02:38.2]} 9. Na3 {[%clk 0:02:49.3]} 9... b6 {[%clk 0:02:32.3]}
10. Rc1 {[%clk 0:02:47.4]} 10... Bb7 {[%clk 0:02:28.3]} 11. Nb5 {[%clk 0:02:44]}
11... Qd7 {[%clk 0:02:08.5]} 12. d4 {[%clk 0:02:43.4]} 12... a6 {[%clk
0:01:54.7]} 13. Na3 {[%clk 0:02:42.4]} 13... cxd4 {[%clk 0:01:46.6]} 14. Nxd4
{[%clk 0:02:32]} 14... Nxd4 {[%clk 0:01:39]} 15. Qxd4 {[%clk 0:02:30.8]} 15...
Qe6 {[%clk 0:01:16.2]} 16. Nc4 {[%clk 0:02:28.3]} 16... b5 {[%clk 0:01:15.4]}
17. Na5 {[%clk 0:02:22.3]} 17... Rad8 {[%clk 0:01:09]} 18. Qa7 {[%clk
0:02:17.1]} 18... Bxg2 {[%clk 0:00:53.7]} 19. Kxg2 {[%clk 0:02:14.9]} 19... Rd2
{[%clk 0:00:53]} 20. Bxf6 {[%clk 0:02:10]} 20... Qxf6 {[%clk 0:00:40.9]} 21. Bf3
{[%clk 0:02:05.4]} 21... b4 {[%clk 0:00:39.4]} 22. Nc6 {[%clk 0:02:04.8]} 22...
e5 {[%clk 0:00:37.2]} 23. Qe7 {[%clk 0:01:57]} 23... Qf5 {[%clk 0:00:31.4]} 24.
Qxb4 {[%clk 0:01:55]} 24... Qg5+ {[%clk 0:00:28.4]} 25. Kh1 {[%clk 0:01:53.3]}
25... Rxa2 {[%clk 0:00:27.3]} 26. Bg2 {[%clk 0:01:46.9]} 26... h5 {[%clk
0:00:25.6]} 27. Ra1 {[%clk 0:01:41.8]} 27... Rxa1 {[%clk 0:00:25]} 28. Rxa1
{[%clk 0:01:42.7]} 28... e4 {[%clk 0:00:23.6]} 29. Rg1 {[%clk 0:01:41.5]} 29...
Qh4 {[%clk 0:00:20.9]} 30. Qxe4 {[%clk 0:01:37.2]} 30... Qxf2 {[%clk 0:00:20.5]}
31. Bf3 {[%clk 0:01:13.7]} 31... Kh7 {[%clk 0:00:18.9]} 32. Bxh5 {[%clk
0:01:06.4]} 32... Bh6 {[%clk 0:00:15.2]} 33. Bxg6+ {[%clk 0:01:04.9]} 33... Kh8
{[%clk 0:00:15.1]} 34. Bh5 {[%clk 0:00:51.6]} 34... Qxe3 {[%clk 0:00:14.5]} 35.
Qg2 {[%clk 0:00:38.5]} 35... Qc3 {[%clk 0:00:10.8]} 36. Ne7 {[%clk 0:00:34.2]}
36... Qf6 {[%clk 0:00:09.3]} 37. Nd5 {[%clk 0:00:32.6]} 37... Qe5 {[%clk
0:00:09]} 38. Bf3 {[%clk 0:00:31.3]} 38... a5 {[%clk 0:00:08.4]} 39. Qh3 {[%clk
0:00:30.2]} 39... Qe6 {[%clk 0:00:08]} 40. Qh5 {[%clk 0:00:26.6]} 40... Rg8
{[%clk 0:00:04.7]} 41. Rxg8+ {[%clk 0:00:19.1]} 41... Kxg8 {[%clk 0:00:04]} 42.
Qg4+ {[%clk 0:00:18]} 42... Qxg4 {[%clk 0:00:04.1]} 43. Bxg4 {[%clk 0:00:18.9]}
43... Kg7 {[%clk 0:00:04.6]} 44. Bf5 {[%clk 0:00:19]} 44... Bd2 {[%clk
0:00:05.2]} 45. Kg2 {[%clk 0:00:19]} 45... Kh6 {[%clk 0:00:05.5]} 46. h4 {[%clk
0:00:18.5]} 46... Kh5 {[%clk 0:00:05.5]} 47. Kh3 {[%clk 0:00:19]} 47... Be1
{[%clk 0:00:05.6]} 48. Nf4+ {[%clk 0:00:13.9]} 48... Kh6 {[%clk 0:00:05.8]} 49.
Kg4 {[%clk 0:00:12.9]} 49... Kg7 {[%clk 0:00:06.1]} 50. Nd5 {[%clk 0:00:13.1]}
50... Kh6 {[%clk 0:00:05.7]} 51. h5 {[%clk 0:00:12.5]} 51... Bd2 {[%clk
0:00:05.3]} 52. Nc7 {[%clk 0:00:11.8]} 52... Kg7 {[%clk 0:00:05.1]} 53. Ne8+
{[%clk 0:00:11.6]} 53... Kh6 {[%clk 0:00:04.9]} 54. Nd6 {[%clk 0:00:11.7]} 54...
Kg7 {[%clk 0:00:05.2]} 55. Nc4 {[%clk 0:00:09.7]} 55... Bc3 {[%clk 0:00:04.8]}
56. Nb6 {[%clk 0:00:09.3]} 56... Kh6 {[%clk 0:00:04.5]} 57. Nd5 {[%clk
0:00:10.2]} 57... Bd2 {[%clk 0:00:04.7]} 58. Be4 {[%clk 0:00:10.7]} 58... Kg7
{[%clk 0:00:04.3]} 59. Bf3 {[%clk 0:00:10.7]} 59... Bc1 {[%clk 0:00:02.6]} 60.
Kf5 {[%clk 0:00:11.3]} 60... Bd2 {[%clk 0:00:02.9]} 61. Be2 {[%clk 0:00:11.1]}
61... Bc1 {[%clk 0:00:02.6]} 62. Nc3 {[%clk 0:00:10]} 62... Bd2 {[%clk
0:00:02.7]} 63. Ne4 {[%clk 0:00:10.7]} 63... Bc1 {[%clk 0:00:02.6]} 64. Nd6
{[%clk 0:00:11.4]} 64... Bd2 {[%clk 0:00:02.7]} 65. Nc4 {[%clk 0:00:11.9]} 65...
Bc3 {[%clk 0:00:02.9]} 66. Ke4 {[%clk 0:00:12.6]} 66... Kh6 {[%clk 0:00:02.6]}
67. Kd5 {[%clk 0:00:13]} 67... Kg5 {[%clk 0:00:02.4]} 68. Kc6 {[%clk 0:00:13.6]}
68... f5 {[%clk 0:00:02.7]} 69. Kb5 {[%clk 0:00:14.1]} 69... Kf4 {[%clk
0:00:02.9]} 70. Nxa5 {[%clk 0:00:14.5]} 70... Ke3 {[%clk 0:00:03.5]} 71. Bc4
{[%clk 0:00:13.6]} 71... f4 {[%clk 0:00:04]} 72. Bd5 {[%clk 0:00:13.9]} 72... f3
{[%clk 0:00:04.3]} 73. Bc4 {[%clk 0:00:14.1]} 73... f2 {[%clk 0:00:04.4]} 74.
Nc6 {[%clk 0:00:14.7]} 74... Kf4 {[%clk 0:00:04.6]} 75. h6 {[%clk 0:00:15]}
75... Kg5 {[%clk 0:00:04.5]} 76. h7 {[%clk 0:00:15.6]} 76... Kh6 {[%clk
0:00:04.8]} 77. Bd3 {[%clk 0:00:16.1]} 77... f1=Q {[%clk 0:00:04.5]} 78. Bxf1
{[%clk 0:00:16.1]} 78... Kxh7 {[%clk 0:00:05]} 79. Kc4 {[%clk 0:00:17]} 79...
Bd2 {[%clk 0:00:04.4]} 80. Kd3 {[%clk 0:00:16.7]} 80... Be1 {[%clk 0:00:04.2]}
81. Ne5 {[%clk 0:00:16.6]} 81... Kg7 {[%clk 0:00:04]} 82. Nf3 {[%clk 0:00:15.7]}
82... Bb4 {[%clk 0:00:03.7]} 83. Kc4 {[%clk 0:00:16.4]} 83... Ba5 {[%clk
0:00:03.9]} 84. Kb5 {[%clk 0:00:15.6]} 84... Bc3 {[%clk 0:00:04]} 85. Kc4 {[%clk
0:00:16.1]} 85... Ba5 {[%clk 0:00:04.1]} 86. Ng5 {[%clk 0:00:15.6]} 86... Kf6
{[%clk 0:00:03.8]} 87. Ne4+ {[%clk 0:00:14.9]} 87... Kg7 {[%clk 0:00:04]} 88.
Kb5 {[%clk 0:00:14.4]} 88... Be1 {[%clk 0:00:04]} 89. Kc4 {[%clk 0:00:14.6]}
89... Kh7 {[%clk 0:00:03.1]} 90. Nc3 {[%clk 0:00:14.9]} 90... Bf2 {[%clk
0:00:02.5]} 91. b4 {[%clk 0:00:15]} 91... Kg7 {[%clk 0:00:02.9]} 92. Ne4 {[%clk
0:00:15.1]} 92... Be3 {[%clk 0:00:02.2]} 93. Nc5 {[%clk 0:00:15.5]} 93... Kf7
{[%clk 0:00:02.3]} 94. b5 {[%clk 0:00:16]} 94... Ke7 {[%clk 0:00:02.6]} 95. Kd5
{[%clk 0:00:16.6]} 95... Ke8 {[%clk 0:00:02.4]} 96. Kc6 {[%clk 0:00:17.3]} 1-0

[Event "Early-Titled-Tuesday-Blitz-September-26-2023"]
[Site "Chess.com"]
[Date "2023.09.26"]
[Round "2"]
[White "lefonghua"]
[Black "spotbet"]
[Result "1-0"]
[WhiteElo "2616"]
[BlackElo "2366"]
[TimeControl "180+1"]
[EndTime "8:11:52 PDT"]
[Termination "lefonghua won by resignation"]

1. d4 {[%clk 0:03:00.9]} 1... Nf6 {[%clk 0:02:59.9]} 2. c4 {[%clk 0:03:01.2]}
2... e6 {[%clk 0:03:00.4]} 3. Nc3 {[%clk 0:03:01.8]} 3... Bb4 {[%clk 0:03:00.8]}
4. f3 {[%clk 0:03:02.5]} 4... c5 {[%clk 0:03:00.5]} 5. a3 {[%clk 0:03:02.4]}
5... Bxc3+ {[%clk 0:03:00.5]} 6. bxc3 {[%clk 0:03:03.3]} 6... cxd4 {[%clk
0:03:01.1]} 7. cxd4 {[%clk 0:03:03.6]} 7... d5 {[%clk 0:03:01.9]} 8. cxd5 {[%clk
0:02:55.1]} 8... exd5 {[%clk 0:03:02.1]} 9. e3 {[%clk 0:02:55.5]} 9... O-O
{[%clk 0:03:02.2]} 10. Bd3 {[%clk 0:02:55.8]} 10... Re8 {[%clk 0:03:02.4]} 11.
Ne2 {[%clk 0:02:56.1]} 11... b6 {[%clk 0:03:02]} 12. O-O {[%clk 0:02:56.1]}
12... Ba6 {[%clk 0:03:02.3]} 13. Ng3 {[%clk 0:02:56.5]} 13... Bxd3 {[%clk
0:03:02.2]} 14. Qxd3 {[%clk 0:02:57.4]} 14... Nc6 {[%clk 0:02:58.1]} 15. Bb2
{[%clk 0:02:57.6]} 15... Na5 {[%clk 0:02:58.2]} 16. Rad1 {[%clk 0:02:57]} 16...
Rc8 {[%clk 0:02:56]} 17. e4 {[%clk 0:02:52.4]} 17... Qd7 {[%clk 0:02:51.7]} 18.
e5 {[%clk 0:02:50]} 18... Nc4 {[%clk 0:02:49.9]} 19. Bc1 {[%clk 0:02:46.5]}
19... Nxe5 {[%clk 0:02:47]} 20. dxe5 {[%clk 0:02:46]} 20... Rxe5 {[%clk
0:02:47.9]} 21. Bb2 {[%clk 0:02:42]} 21... Re6 {[%clk 0:02:47.5]} 22. Bxf6
{[%clk 0:02:38.1]} 22... Rxf6 {[%clk 0:02:47.7]} 23. Qxd5 {[%clk 0:02:37.6]} 1-0

[Event "Early-Titled-Tuesday-Blitz-September-26-2023"]
[Site "Chess.com"]
[Date "2023.09.26"]
[Round "2"]
[White "crazyluzhinTh3"]
[Black "Javylavilla"]
[Result "1-0"]
[WhiteElo "2513"]
[BlackElo "2293"]
[TimeControl "180+1"]
[EndTime "8:12:54 PDT"]
[Termination "crazyluzhinTh3 won by resignation"]

1. e4 {[%clk 0:03:00.9]} 1... c5 {[%clk 0:02:59.2]} 2. Nf3 {[%clk 0:03:01.3]}
2... e6 {[%clk 0:02:58.9]} 3. c3 {[%clk 0:03:01.2]} 3... Nf6 {[%clk 0:02:57.6]}
4. e5 {[%clk 0:03:01.5]} 4... Nd5 {[%clk 0:02:57.6]} 5. d4 {[%clk 0:03:02.4]}
5... cxd4 {[%clk 0:02:57.9]} 6. Bc4 {[%clk 0:03:03.1]} 6... Nc6 {[%clk
0:02:53.7]} 7. cxd4 {[%clk 0:03:02]} 7... d6 {[%clk 0:02:53.6]} 8. O-O {[%clk
0:03:01.8]} 8... Be7 {[%clk 0:02:50.4]} 9. Qe2 {[%clk 0:03:01.8]} 9... Nb6
{[%clk 0:02:49.7]} 10. Bb3 {[%clk 0:03:01.3]} 10... O-O {[%clk 0:02:41.5]} 11.
Nc3 {[%clk 0:03:01.4]} 11... dxe5 {[%clk 0:02:24.5]} 12. dxe5 {[%clk 0:03:02.3]}
12... Nd4 {[%clk 0:02:23.9]} 13. Nxd4 {[%clk 0:03:02.2]} 13... Qxd4 {[%clk
0:02:24.8]} 14. Rd1 {[%clk 0:03:02]} 14... Qh4 {[%clk 0:02:18.6]} 15. Be3 {[%clk
0:02:58.2]} 15... Nd7 {[%clk 0:02:10.3]} 16. Rd4 {[%clk 0:02:48.4]} 16... Nxe5
{[%clk 0:01:51.4]} 17. Rxh4 {[%clk 0:02:47.6]} 17... Bxh4 {[%clk 0:01:52.3]} 18.
Bc5 {[%clk 0:02:40.3]} 1-0

[Event "Early-Titled-Tuesday-Blitz-September-26-2023"]
[Site "Chess.com"]
[Date "2023.09.26"]
[Round "2"]
[White "Der_Balak_3Halak"]
[Black "Maxterlopez"]
[Result "0-1"]
[WhiteElo "2378"]
[BlackElo "2753"]
[TimeControl "180+1"]
[EndTime "8:12:58 PDT"]
[Termination "Maxterlopez won by resignation"]

1. e4 {[%clk 0:03:00.7]} 1... e5 {[%clk 0:02:54.7]} 2. Nf3 {[%clk 0:03:00.5]}
2... Nc6 {[%clk 0:02:54.1]} 3. Bc4 {[%clk 0:03:01.1]} 3... Bc5 {[%clk
0:02:52.1]} 4. O-O {[%clk 0:03:00.7]} 4... Nf6 {[%clk 0:02:52.6]} 5. Nxe5 {[%clk
0:02:52]} 5... Nxe5 {[%clk 0:02:52.3]} 6. d4 {[%clk 0:02:49.9]} 6... Nxc4 {[%clk
0:02:52.5]} 7. dxc5 {[%clk 0:02:49.9]} 7... O-O {[%clk 0:02:48.7]} 8. e5 {[%clk
0:02:47.4]} 8... Nxe5 {[%clk 0:02:48.7]} 9. Bg5 {[%clk 0:02:44]} 9... h6 {[%clk
0:02:47.9]} 10. Bh4 {[%clk 0:02:43.4]} 10... Ng6 {[%clk 0:02:48]} 11. Bg3 {[%clk
0:02:43.1]} 11... Ne4 {[%clk 0:02:48]} 12. Re1 {[%clk 0:02:37.1]} 12... Nxg3
{[%clk 0:02:47.6]} 13. hxg3 {[%clk 0:02:36.8]} 13... b6 {[%clk 0:02:45.4]} 14.
cxb6 {[%clk 0:02:36.3]} 14... axb6 {[%clk 0:02:46.3]} 15. Nc3 {[%clk 0:02:35.6]}
15... Bb7 {[%clk 0:02:46.9]} 16. Nd5 {[%clk 0:02:34.1]} 16... Bxd5 {[%clk
0:02:45.7]} 17. Qxd5 {[%clk 0:02:34.5]} 17... Ra5 {[%clk 0:02:45.6]} 18. Qb3
{[%clk 0:02:33.2]} 18... Re8 {[%clk 0:02:45.3]} 19. c4 {[%clk 0:02:32.2]} 19...
Rxe1+ {[%clk 0:02:43.6]} 20. Rxe1 {[%clk 0:02:33.1]} 20... Re5 {[%clk 0:02:44]}
21. Rd1 {[%clk 0:02:27.1]} 21... d6 {[%clk 0:02:43.7]} 22. a3 {[%clk 0:02:24.7]}
22... Qe7 {[%clk 0:02:43.3]} 23. Qc3 {[%clk 0:02:23.4]} 23... Re2 {[%clk
0:02:42.1]} 24. b3 {[%clk 0:02:21.7]} 24... Ne5 {[%clk 0:02:38.1]} 25. a4 {[%clk
0:02:20.4]} 25... Ng4 {[%clk 0:02:37.7]} 26. Rf1 {[%clk 0:02:18.5]} 26... Qe5
{[%clk 0:02:33.3]} 27. Qf3 {[%clk 0:02:13.7]} 27... Qh5 {[%clk 0:02:30.3]} 0-1

[Event "Early-Titled-Tuesday-Blitz-September-26-2023"]
[Site "Chess.com"]
[Date "2023.09.26"]
[Round "2"]
[White "AndrewB92"]
[Black "Lion-Al-Messi"]
[Result "0-1"]
[WhiteElo "2369"]
[BlackElo "2678"]
[TimeControl "180+1"]
[EndTime "8:13:21 PDT"]
[Termination "Lion-Al-Messi won by resignation"]

1. d4 {[%clk 0:03:00.9]} 1... d5 {[%clk 0:02:59.4]} 2. Nf3 {[%clk 0:03:01.2]}
2... Nf6 {[%clk 0:02:58.1]} 3. Bf4 {[%clk 0:03:01.5]} 3... c5 {[%clk 0:02:57.7]}
4. dxc5 {[%clk 0:03:00]} 4... e6 {[%clk 0:02:54.5]} 5. b4 {[%clk 0:02:55.2]}
5... a5 {[%clk 0:02:53.7]} 6. c3 {[%clk 0:02:54.1]} 6... axb4 {[%clk 0:02:45]}
7. cxb4 {[%clk 0:02:55]} 7... Nc6 {[%clk 0:02:45.6]} 8. Qb3 {[%clk 0:02:34.4]}
8... Ne4 {[%clk 0:02:45.6]} 9. Nbd2 {[%clk 0:02:17.9]} 9... Qf6 {[%clk
0:02:43.3]} 10. Rd1 {[%clk 0:01:31.1]} 10... Qxf4 {[%clk 0:02:41.3]} 11. e3
{[%clk 0:01:28.7]} 11... Nxd2 {[%clk 0:02:37.1]} 0-1

[Event "Early-Titled-Tuesday-Blitz-September-26-2023"]
[Site "Chess.com"]
[Date "2023.09.26"]
[Round "2"]
[White "wannabe2700"]
[Black "ShiroglanTalibov"]
[Result "1-0"]
[WhiteElo "2622"]
[BlackElo "2842"]
[TimeControl "180+1"]
[EndTime "8:13:46 PDT"]
[Termination "wannabe2700 won by resignation"]

1. f4 {[%clk 0:03:00.9]} 1... e5 {[%clk 0:02:54]} 2. Nf3 {[%clk 0:03:01.8]} 2...
e4 {[%clk 0:02:47.9]} 3. Ng1 {[%clk 0:02:43.1]} 3... d5 {[%clk 0:02:44.8]} 4. d3
{[%clk 0:02:41.5]} 4... Nf6 {[%clk 0:02:39.6]} 5. c4 {[%clk 0:02:39]} 5... Bc5
{[%clk 0:02:38.2]} 6. Nc3 {[%clk 0:02:36.5]} 6... exd3 {[%clk 0:02:19.3]} 7.
cxd5 {[%clk 0:02:26]} 7... Bf5 {[%clk 0:02:06.3]} 8. e4 {[%clk 0:02:23.6]} 8...
Nxe4 {[%clk 0:02:05.7]} 9. Nxe4 {[%clk 0:02:22.7]} 9... Bxe4 {[%clk 0:02:06.6]}
10. Qa4+ {[%clk 0:02:21.6]} 10... Nc6 {[%clk 0:01:23.7]} 11. Qxe4+ {[%clk
0:02:17.8]} 11... Ne7 {[%clk 0:01:24]} 12. Bxd3 {[%clk 0:02:12.2]} 12... Qd7
{[%clk 0:01:18.5]} 13. Be3 {[%clk 0:02:05.9]} 13... Qf5 {[%clk 0:01:10.5]} 1-0

[Event "Early-Titled-Tuesday-Blitz-September-26-2023"]
[Site "Chess.com"]
[Date "2023.09.26"]
[Round "2"]
[White "Zarinur"]
[Black "HanSchut"]
[Result "1-0"]
[WhiteElo "2534"]
[BlackElo "2332"]
[TimeControl "180+1"]
[EndTime "8:13:57 PDT"]
[Termination "Zarinur won by resignation"]

1. c4 {[%clk 0:03:00.2]} 1... Nf6 {[%clk 0:03:00]} 2. Nc3 {[%clk 0:02:57.7]}
2... d5 {[%clk 0:03:00.4]} 3. cxd5 {[%clk 0:02:57.2]} 3... Nxd5 {[%clk
0:03:01.3]} 4. Nf3 {[%clk 0:02:57.3]} 4... c5 {[%clk 0:03:01.9]} 5. e3 {[%clk
0:02:52.9]} 5... Nc6 {[%clk 0:03:01.8]} 6. Bb5 {[%clk 0:02:52.1]} 6... Nb4
{[%clk 0:02:50.3]} 7. d4 {[%clk 0:02:45.5]} 7... cxd4 {[%clk 0:02:48]} 8. exd4
{[%clk 0:02:41.7]} 8... a6 {[%clk 0:02:48.8]} 9. Bxc6+ {[%clk 0:02:39.7]} 9...
Nxc6 {[%clk 0:02:48.8]} 10. d5 {[%clk 0:02:37.5]} 10... Nb8 {[%clk 0:02:47]} 11.
O-O {[%clk 0:02:37]} 11... e6 {[%clk 0:02:47.1]} 12. dxe6 {[%clk 0:02:07.8]}
12... Bxe6 {[%clk 0:02:43.9]} 13. Nd4 {[%clk 0:02:07.7]} 13... Bd7 {[%clk
0:02:11.7]} 14. Re1+ {[%clk 0:02:06.3]} 14... Be7 {[%clk 0:02:12.4]} 15. Nd5
{[%clk 0:02:03.5]} 15... Be6 {[%clk 0:01:49.4]} 16. Nxe6 {[%clk 0:02:01.6]}
16... fxe6 {[%clk 0:01:48.5]} 17. Rxe6 {[%clk 0:02:02.4]} 17... Nc6 {[%clk
0:01:46.7]} 18. Bg5 {[%clk 0:02:00.2]} 18... Qd7 {[%clk 0:01:37.1]} 19. Bxe7
{[%clk 0:01:58.7]} 1-0

[Event "Early-Titled-Tuesday-Blitz-September-26-2023"]
[Site "Chess.com"]
[Date "2023.09.26"]
[Round "2"]
[White "Barmen_EV"]
[Black "JiiHart"]
[Result "1-0"]
[WhiteElo "2443"]
[BlackElo "2165"]
[TimeControl "180+1"]
[EndTime "8:14:06 PDT"]
[Termination "Barmen_EV won by resignation"]

1. e4 {[%clk 0:03:00.9]} 1... c5 {[%clk 0:02:59.3]} 2. c3 {[%clk 0:03:00.4]}
2... d5 {[%clk 0:02:58.8]} 3. exd5 {[%clk 0:03:00.7]} 3... Qxd5 {[%clk
0:02:59.1]} 4. d4 {[%clk 0:03:01.6]} 4... cxd4 {[%clk 0:02:58.8]} 5. cxd4 {[%clk
0:03:02.5]} 5... Nc6 {[%clk 0:02:58.8]} 6. Nf3 {[%clk 0:03:03.1]} 6... Bg4
{[%clk 0:02:58.8]} 7. Nc3 {[%clk 0:03:03.5]} 7... Bxf3 {[%clk 0:02:58.6]} 8.
Nxd5 {[%clk 0:03:03.2]} 8... Bxd1 {[%clk 0:02:58.4]} 9. Nc7+ {[%clk 0:03:04.1]}
9... Kd8 {[%clk 0:02:57.5]} 10. Nxa8 {[%clk 0:03:05]} 10... Bh5 {[%clk
0:02:56.6]} 11. Bf4 {[%clk 0:02:42.4]} 11... e6 {[%clk 0:02:55.9]} 12. f3 {[%clk
0:02:31.4]} 12... Nf6 {[%clk 0:02:43.9]} 13. Nc7 {[%clk 0:02:28.1]} 13... a6
{[%clk 0:02:03.4]} 14. Rc1 {[%clk 0:02:24.5]} 14... Bb4+ {[%clk 0:01:54.6]} 15.
Kf2 {[%clk 0:02:23.2]} 15... Ba5 {[%clk 0:01:54.4]} 16. Nxa6 {[%clk 0:02:18.2]}
16... Bb6 {[%clk 0:01:44.8]} 17. Nc5 {[%clk 0:02:15.1]} 17... Nxd4 {[%clk
0:01:39.9]} 18. Nxb7+ {[%clk 0:02:14.7]} 18... Ke7 {[%clk 0:01:30.9]} 19. Bd6+
{[%clk 0:02:06.3]} 19... Kd7 {[%clk 0:01:30.3]} 20. Bc5 {[%clk 0:02:06.6]} 20...
Rb8 {[%clk 0:01:13.5]} 21. Bxb6 {[%clk 0:02:02.3]} 1-0

[Event "Early-Titled-Tuesday-Blitz-September-26-2023"]
[Site "Chess.com"]
[Date "2023.09.26"]
[Round "2"]
[White "Zohid6"]
[Black "DanielTitichoca"]
[Result "1-0"]
[WhiteElo "2777"]
[BlackElo "2568"]
[TimeControl "180+1"]
[EndTime "8:14:21 PDT"]
[Termination "Zohid6 won by resignation"]

1. d4 {[%clk 0:03:00.9]} 1... d5 {[%clk 0:02:55.7]} 2. Nc3 {[%clk 0:03:01.4]}
2... Nf6 {[%clk 0:02:54.6]} 3. Bf4 {[%clk 0:03:01.7]} 3... a6 {[%clk 0:02:54.6]}
4. e3 {[%clk 0:03:02.1]} 4... e6 {[%clk 0:02:46.3]} 5. g4 {[%clk 0:03:01.9]}
5... Bb4 {[%clk 0:02:41.5]} 6. Ne2 {[%clk 0:03:01.5]} 6... c5 {[%clk 0:02:38.5]}
7. a3 {[%clk 0:03:00.7]} 7... Bxc3+ {[%clk 0:02:38]} 8. Nxc3 {[%clk 0:03:01.6]}
8... Nc6 {[%clk 0:02:37.7]} 9. g5 {[%clk 0:02:59.9]} 9... Nd7 {[%clk 0:02:37.3]}
10. Qd2 {[%clk 0:02:56.2]} 10... b5 {[%clk 0:02:33.5]} 11. h4 {[%clk 0:02:55.4]}
11... Bb7 {[%clk 0:02:19.8]} 12. h5 {[%clk 0:02:54.9]} 12... e5 {[%clk
0:02:19.8]} 13. dxe5 {[%clk 0:02:54.4]} 13... Ncxe5 {[%clk 0:02:19]} 14. Bg2
{[%clk 0:02:54.3]} 14... Nc4 {[%clk 0:02:17.1]} 15. Qe2 {[%clk 0:02:49.7]} 15...
Ndb6 {[%clk 0:01:54.7]} 16. b3 {[%clk 0:02:44.9]} 16... Nd6 {[%clk 0:01:55]} 17.
Rd1 {[%clk 0:02:42.9]} 17... Nf5 {[%clk 0:01:47.1]} 18. Qg4 {[%clk 0:02:29.8]}
18... g6 {[%clk 0:01:25.2]} 19. hxg6 {[%clk 0:02:29.2]} 19... fxg6 {[%clk
0:01:25.6]} 20. e4 {[%clk 0:02:23.7]} 20... Nd4 {[%clk 0:01:22.9]} 21. Be5
{[%clk 0:02:22.7]} 21... O-O {[%clk 0:01:04.1]} 22. Rxd4 {[%clk 0:02:11.5]}
22... cxd4 {[%clk 0:01:02.6]} 23. Qe6+ {[%clk 0:02:11.3]} 23... Rf7 {[%clk
0:01:00.9]} 24. Rxh7 {[%clk 0:02:12.2]} 1-0

[Event "Early-Titled-Tuesday-Blitz-September-26-2023"]
[Site "Chess.com"]
[Date "2023.09.26"]
[Round "2"]
[White "lamomiajunior"]
[Black "Maxfan2008"]
[Result "1-0"]
[WhiteElo "2746"]
[BlackElo "2544"]
[TimeControl "180+1"]
[EndTime "8:14:24 PDT"]
[Termination "lamomiajunior won by resignation"]

1. d4 {[%clk 0:03:00.9]} 1... d5 {[%clk 0:02:57.7]} 2. c4 {[%clk 0:03:00.8]}
2... c6 {[%clk 0:02:57.7]} 3. Nc3 {[%clk 0:03:01.2]} 3... Nf6 {[%clk 0:02:57.4]}
4. Nf3 {[%clk 0:03:01.8]} 4... e6 {[%clk 0:02:54.5]} 5. Bg5 {[%clk 0:03:01.1]}
5... Nbd7 {[%clk 0:02:53.5]} 6. e3 {[%clk 0:03:00.7]} 6... Qa5 {[%clk
0:02:52.7]} 7. Nd2 {[%clk 0:02:56.9]} 7... Bb4 {[%clk 0:02:52.4]} 8. Rc1 {[%clk
0:02:50.1]} 8... dxc4 {[%clk 0:02:26.6]} 9. Bxf6 {[%clk 0:02:49.6]} 9... Nxf6
{[%clk 0:02:26.3]} 10. Nxc4 {[%clk 0:02:49.8]} 10... Qxa2 {[%clk 0:02:19.4]} 11.
Ra1 {[%clk 0:02:40.9]} 11... Qxa1 {[%clk 0:01:49.3]} 12. Qxa1 {[%clk 0:02:39.8]}
12... O-O {[%clk 0:01:48.5]} 13. Bd3 {[%clk 0:02:38.7]} 13... b5 {[%clk
0:01:47.7]} 14. Ne5 {[%clk 0:02:38.8]} 14... Bb7 {[%clk 0:01:43.4]} 15. O-O
{[%clk 0:02:39.1]} 15... Rfd8 {[%clk 0:01:42.8]} 16. Ne4 {[%clk 0:02:38.6]}
16... Be7 {[%clk 0:01:39.7]} 17. Nxf6+ {[%clk 0:02:37]} 17... gxf6 {[%clk
0:01:39.1]} 18. Nf3 {[%clk 0:02:35.1]} 18... a6 {[%clk 0:01:38.9]} 19. Qb1
{[%clk 0:02:30.9]} 19... f5 {[%clk 0:01:38.2]} 20. e4 {[%clk 0:02:31.5]} 20...
fxe4 {[%clk 0:01:17.7]} 21. Bxe4 {[%clk 0:02:31.7]} 21... f5 {[%clk 0:01:17.8]}
22. Qa2 {[%clk 0:02:22]} 22... fxe4 {[%clk 0:01:14.2]} 23. Qxe6+ {[%clk
0:02:21.9]} 23... Kh8 {[%clk 0:01:09.6]} 24. Qxe7 {[%clk 0:02:19.8]} 24... exf3
{[%clk 0:01:09.1]} 25. Qxb7 {[%clk 0:02:20.1]} 25... fxg2 {[%clk 0:01:09.5]} 26.
Re1 {[%clk 0:02:19.3]} 26... Re8 {[%clk 0:01:05]} 27. Rxe8+ {[%clk 0:02:18]}
27... Rxe8 {[%clk 0:01:05.9]} 28. Qxc6 {[%clk 0:02:17.7]} 28... Re2 {[%clk
0:01:03.2]} 29. Qc8+ {[%clk 0:02:16.5]} 29... Kg7 {[%clk 0:01:02.9]} 30. Qg4+
{[%clk 0:02:17.2]} 1-0

[Event "Early-Titled-Tuesday-Blitz-September-26-2023"]
[Site "Chess.com"]
[Date "2023.09.26"]
[Round "2"]
[White "Flaccidmoves"]
[Black "Ariadna_Atreides"]
[Result "1-0"]
[WhiteElo "2449"]
[BlackElo "2201"]
[TimeControl "180+1"]
[EndTime "8:14:35 PDT"]
[Termination "Flaccidmoves won by checkmate"]

1. b3 {[%clk 0:03:00.9]} 1... e5 {[%clk 0:02:54.6]} 2. Bb2 {[%clk 0:03:01.2]}
2... Nc6 {[%clk 0:02:53.6]} 3. e3 {[%clk 0:03:01.1]} 3... d6 {[%clk 0:02:53.2]}
4. Bb5 {[%clk 0:03:00]} 4... Bd7 {[%clk 0:02:52.1]} 5. d4 {[%clk 0:02:59.1]}
5... Nge7 {[%clk 0:02:45.3]} 6. d5 {[%clk 0:02:56.1]} 6... Nb8 {[%clk
0:02:44.1]} 7. Be2 {[%clk 0:02:51.1]} 7... c6 {[%clk 0:02:33.2]} 8. c4 {[%clk
0:02:49.5]} 8... Na6 {[%clk 0:02:27.4]} 9. Nf3 {[%clk 0:02:45.7]} 9... Nc7
{[%clk 0:02:27]} 10. Nc3 {[%clk 0:02:43.7]} 10... g6 {[%clk 0:02:22.3]} 11. Ne4
{[%clk 0:02:42]} 11... Nc8 {[%clk 0:02:18.3]} 12. Nxe5 {[%clk 0:02:29]} 12...
Bg7 {[%clk 0:02:08.2]} 13. dxc6 {[%clk 0:02:10]} 13... bxc6 {[%clk 0:01:27.7]}
14. Nxd6+ {[%clk 0:02:09.5]} 14... Nxd6 {[%clk 0:01:08.4]} 15. Qxd6 {[%clk
0:02:10.4]} 15... Ne6 {[%clk 0:00:51.3]} 16. Nxc6 {[%clk 0:01:57.2]} 16... Qb6
{[%clk 0:00:35]} 17. Qe7# {[%clk 0:01:56]} 1-0